[Event "Early-Titled-Tuesday-Blitz-February-06-2024"]
[Site "Chess.com"]
[Date "2024.02.06"]
[Round "8"]
[White "Aash20"]
[Black "Roedor"]
[Result "1/2-1/2"]
[WhiteElo "2456"]
[BlackElo "2338"]
[TimeControl "180+1"]
[EndTime "9:25:23 PST"]
[Termination "Game drawn by repetition"]

1. e4 {[%clk 0:03:00.9]} 1... e5 {[%clk 0:02:58.2]} 2. Nf3 {[%clk 0:03:00.7]}
2... Nc6 {[%clk 0:02:57.2]} 3. Bc4 {[%clk 0:03:00.8]} 3... Bc5 {[%clk
0:02:56.8]} 4. c3 {[%clk 0:03:00.4]} 4... Nf6 {[%clk 0:02:56.7]} 5. d4 {[%clk
0:03:00.1]} 5... exd4 {[%clk 0:02:56.9]} 6. cxd4 {[%clk 0:03:01]} 6... Bb4+
{[%clk 0:02:57.2]} 7. Bd2 {[%clk 0:03:00.1]} 7... Bxd2+ {[%clk 0:02:56.4]} 8.
Nbxd2 {[%clk 0:03:01]} 8... d5 {[%clk 0:02:56.7]} 9. exd5 {[%clk 0:03:00.5]}
9... Nxd5 {[%clk 0:02:57.6]} 10. Qb3 {[%clk 0:03:00.3]} 10... Na5 {[%clk
0:02:57.1]} 11. Qa4+ {[%clk 0:02:59.5]} 11... Nc6 {[%clk 0:02:57.3]} 12. Qb3
{[%clk 0:02:57.4]} 12... Na5 {[%clk 0:02:57.4]} 13. Qa4+ {[%clk 0:02:57]} 13...
Nc6 {[%clk 0:02:57.7]} 14. O-O {[%clk 0:02:54.2]} 14... O-O {[%clk 0:02:55.7]}
15. Rac1 {[%clk 0:02:50.6]} 15... Nb6 {[%clk 0:02:55.2]} 16. Qc2 {[%clk
0:02:48.2]} 16... Nxd4 {[%clk 0:02:52.8]} 17. Nxd4 {[%clk 0:02:47]} 17... Qxd4
{[%clk 0:02:53.7]} 18. Bd3 {[%clk 0:02:47]} 18... h6 {[%clk 0:02:47.7]} 19. Nf3
{[%clk 0:02:45.7]} 19... Qf6 {[%clk 0:02:39]} 20. Qxc7 {[%clk 0:02:44.1]} 20...
Qxb2 {[%clk 0:02:38.8]} 21. Rc2 {[%clk 0:02:37.9]} 21... Qf6 {[%clk 0:02:38.2]}
22. Rfc1 {[%clk 0:02:28.7]} 22... Nd5 {[%clk 0:02:33.9]} 23. Qc5 {[%clk
0:02:22.9]} 23... Nf4 {[%clk 0:02:32.1]} 24. Be4 {[%clk 0:02:21.9]} 24... Bg4
{[%clk 0:02:26.3]} 25. Ne5 {[%clk 0:02:20.4]} 25... Ne2+ {[%clk 0:02:07]} 26.
Rxe2 {[%clk 0:02:19.1]} 26... Bxe2 {[%clk 0:02:07.9]} 27. Nd7 {[%clk 0:02:18.7]}
27... Qf4 {[%clk 0:02:05]} 28. Nxf8 {[%clk 0:02:17.2]} 28... Qxe4 {[%clk
0:02:02.4]} 29. Nd7 {[%clk 0:02:16.7]} 29... Ba6 {[%clk 0:01:56.7]} 30. f3
{[%clk 0:02:12.2]} 30... Qe6 {[%clk 0:01:54.3]} 31. Qc8+ {[%clk 0:02:00.2]}
31... Qe8 {[%clk 0:01:54.5]} 32. Qxe8+ {[%clk 0:01:51.4]} 32... Rxe8 {[%clk
0:01:55.4]} 33. Rc2 {[%clk 0:01:49]} 33... Re2 {[%clk 0:01:46.8]} 34. Rc8+
{[%clk 0:01:47.7]} 34... Kh7 {[%clk 0:01:44.6]} 35. Nf8+ {[%clk 0:01:47.8]}
35... Kg8 {[%clk 0:01:44.7]} 36. Ng6+ {[%clk 0:01:45.5]} 36... Kh7 {[%clk
0:01:44.9]} 37. Nf8+ {[%clk 0:01:45.5]} 37... Kg8 {[%clk 0:01:45.2]} 38. Ng6+
{[%clk 0:01:45.6]} 38... Kh7 {[%clk 0:01:45.4]} 39. Nf8+ {[%clk 0:01:44.8]}
1/2-1/2

[Event "Early-Titled-Tuesday-Blitz-February-06-2024"]
[Site "Chess.com"]
[Date "2024.02.06"]
[Round "8"]
[White "HansOnTwitch"]
[Black "AlmasRakhmatullaev"]
[Result "1/2-1/2"]
[WhiteElo "3166"]
[BlackElo "2915"]
[TimeControl "180+1"]
[EndTime "9:25:25 PST"]
[Termination "Game drawn by repetition"]

1. e4 {[%clk 0:03:00.9]} 1... e5 {[%clk 0:02:59.6]} 2. Nf3 {[%clk 0:02:54.7]}
2... Nf6 {[%clk 0:02:59.4]} 3. Nxe5 {[%clk 0:02:54.2]} 3... Nxe4 {[%clk
0:02:59.5]} 4. Qe2 {[%clk 0:02:48]} 4... Qe7 {[%clk 0:02:59.7]} 5. d4 {[%clk
0:02:39.5]} 5... d6 {[%clk 0:02:54.2]} 6. Nd3 {[%clk 0:02:38.5]} 6... Nf6 {[%clk
0:02:52.1]} 7. c3 {[%clk 0:02:35.8]} 7... Bf5 {[%clk 0:02:50.7]} 8. Nd2 {[%clk
0:02:29.8]} 8... Nbd7 {[%clk 0:02:49.4]} 9. f3 {[%clk 0:02:24.3]} 9... O-O-O
{[%clk 0:02:45.8]} 10. Qxe7 {[%clk 0:02:23.6]} 10... Bxe7 {[%clk 0:02:46.7]} 11.
g4 {[%clk 0:02:23.6]} 11... Bg6 {[%clk 0:02:40.5]} 12. Nf4 {[%clk 0:02:21.2]}
12... Rde8 {[%clk 0:02:30.9]} 13. Kf2 {[%clk 0:02:20.5]} 13... h6 {[%clk
0:02:10.3]} 14. Nxg6 {[%clk 0:02:11.5]} 14... fxg6 {[%clk 0:02:10.3]} 15. h4
{[%clk 0:02:11.5]} 15... Rhf8 {[%clk 0:02:08.1]} 16. Kg3 {[%clk 0:02:06.9]}
16... d5 {[%clk 0:02:07.5]} 17. Nb3 {[%clk 0:01:49.3]} 17... Bd6+ {[%clk
0:02:05.3]} 18. Kg2 {[%clk 0:01:49.7]} 18... Nxg4 {[%clk 0:01:32.7]} 19. fxg4
{[%clk 0:01:13.3]} 19... Re4 {[%clk 0:01:32.7]} 20. Kh3 {[%clk 0:01:14]} 20...
Rf3+ {[%clk 0:01:32]} 21. Kg2 {[%clk 0:01:14.4]} 21... Rf8 {[%clk 0:01:31.8]}
22. Kh3 {[%clk 0:01:14.1]} 22... Rf3+ {[%clk 0:01:31.4]} 23. Kg2 {[%clk
0:01:14.4]} 23... Rf8 {[%clk 0:01:32]} 1/2-1/2

[Event "Early-Titled-Tuesday-Blitz-February-06-2024"]
[Site "Chess.com"]
[Date "2024.02.06"]
[Round "8"]
[White "SarochaChuemsakul"]
[Black "rikchessmx"]
[Result "1-0"]
[WhiteElo "2436"]
[BlackElo "2314"]
[TimeControl "180+1"]
[EndTime "9:25:32 PST"]
[Termination "SarochaChuemsakul won by resignation"]

1. d4 {[%clk 0:03:00.9]} 1... Nf6 {[%clk 0:02:58.1]} 2. c4 {[%clk 0:03:00.4]}
2... e6 {[%clk 0:02:58.4]} 3. Nf3 {[%clk 0:03:00.7]} 3... d5 {[%clk 0:02:58.9]}
4. cxd5 {[%clk 0:03:00.9]} 4... exd5 {[%clk 0:02:58.8]} 5. Nc3 {[%clk
0:03:01.8]} 5... c6 {[%clk 0:02:58.8]} 6. Bg5 {[%clk 0:03:02.2]} 6... Nbd7
{[%clk 0:02:57.4]} 7. e3 {[%clk 0:03:02.8]} 7... Be7 {[%clk 0:02:57.7]} 8. Bd3
{[%clk 0:03:03.1]} 8... O-O {[%clk 0:02:58.6]} 9. O-O {[%clk 0:03:03.3]} 9...
Re8 {[%clk 0:02:57.5]} 10. Qc2 {[%clk 0:03:03.6]} 10... g6 {[%clk 0:02:56.6]}
11. h3 {[%clk 0:03:01.1]} 11... Nh5 {[%clk 0:02:56.4]} 12. Bxe7 {[%clk 0:03:01]}
12... Qxe7 {[%clk 0:02:55.8]} 13. Rab1 {[%clk 0:03:01.9]} 13... a5 {[%clk
0:02:54.7]} 14. a3 {[%clk 0:03:01.6]} 14... f5 {[%clk 0:02:54.1]} 15. b4 {[%clk
0:02:58.4]} 15... axb4 {[%clk 0:02:54.2]} 16. axb4 {[%clk 0:02:59.3]} 16... b5
{[%clk 0:02:54.6]} 17. Ne2 {[%clk 0:02:53.4]} 17... Bb7 {[%clk 0:02:52.2]} 18.
Nf4 {[%clk 0:02:46.3]} 18... Nhf6 {[%clk 0:02:49.3]} 19. Be2 {[%clk 0:02:44.9]}
19... Ne4 {[%clk 0:02:47.9]} 20. Nd3 {[%clk 0:02:44.2]} 20... Nb6 {[%clk
0:02:45.8]} 21. Ra1 {[%clk 0:02:35.1]} 21... Nc4 {[%clk 0:02:45.4]} 22. Nc5
{[%clk 0:02:34.9]} 22... Rf8 {[%clk 0:02:33.5]} 23. Bxc4 {[%clk 0:02:29.4]}
23... bxc4 {[%clk 0:02:22.7]} 24. Ne5 {[%clk 0:02:29.6]} 24... f4 {[%clk
0:02:17.3]} 25. Rxa8 {[%clk 0:02:11.6]} 25... Bxa8 {[%clk 0:02:13.6]} 26. Nxe4
{[%clk 0:02:10.6]} 26... dxe4 {[%clk 0:02:10.8]} 27. Qxc4+ {[%clk 0:02:06.9]}
27... Kg7 {[%clk 0:02:09.6]} 28. Nxc6 {[%clk 0:02:01.7]} 28... Bxc6 {[%clk
0:02:08.5]} 29. Qxc6 {[%clk 0:02:01.6]} 29... f3 {[%clk 0:02:07.3]} 30. g3
{[%clk 0:01:40.5]} 30... Rf6 {[%clk 0:02:06]} 31. Qc5 {[%clk 0:01:36.8]} 31...
Qd7 {[%clk 0:02:03.5]} 32. Kh2 {[%clk 0:01:32.5]} 32... Rf5 {[%clk 0:02:03.6]}
33. Qc2 {[%clk 0:01:18]} 33... Rh5 {[%clk 0:02:01]} 34. h4 {[%clk 0:01:16.4]}
34... Rxh4+ {[%clk 0:02:00.3]} 35. gxh4 {[%clk 0:01:13]} 35... Qg4 {[%clk
0:02:00.2]} 36. Qc7+ {[%clk 0:01:12.5]} 36... Kh6 {[%clk 0:01:59.8]} 37. Qg3
{[%clk 0:01:13.4]} 37... Qxg3+ {[%clk 0:01:58.3]} 38. Kxg3 {[%clk 0:01:13]} 1-0

[Event "Early-Titled-Tuesday-Blitz-February-06-2024"]
[Site "Chess.com"]
[Date "2024.02.06"]
[Round "8"]
[White "Anton_Demchenko"]
[Black "TregubovP"]
[Result "1-0"]
[WhiteElo "2892"]
[BlackElo "2683"]
[TimeControl "180+1"]
[EndTime "9:25:39 PST"]
[Termination "Anton_Demchenko won by resignation"]

1. e4 {[%clk 0:03:00.9]} 1... c5 {[%clk 0:02:58.1]} 2. Nc3 {[%clk 0:03:00.3]}
2... e6 {[%clk 0:02:57.7]} 3. Nf3 {[%clk 0:02:58.1]} 3... Nc6 {[%clk 0:02:55.9]}
4. a4 {[%clk 0:02:58.7]} 4... Nf6 {[%clk 0:02:51]} 5. Bb5 {[%clk 0:02:58.6]}
5... Qc7 {[%clk 0:02:42.8]} 6. O-O {[%clk 0:02:53.7]} 6... Nd4 {[%clk
0:02:33.5]} 7. Re1 {[%clk 0:02:53.5]} 7... a6 {[%clk 0:02:31.6]} 8. e5 {[%clk
0:02:29.5]} 8... Ng4 {[%clk 0:01:38.3]} 9. Nxd4 {[%clk 0:02:25.9]} 9... cxd4
{[%clk 0:01:38.1]} 10. Qxg4 {[%clk 0:02:25.6]} 10... dxc3 {[%clk 0:01:38.2]} 11.
Bd3 {[%clk 0:02:23.6]} 11... cxb2 {[%clk 0:01:24.7]} 12. Bxb2 {[%clk 0:02:24.5]}
12... b6 {[%clk 0:01:25.1]} 13. Rab1 {[%clk 0:02:14.4]} 13... Bb7 {[%clk
0:01:25.2]} 14. Bd4 {[%clk 0:02:13.3]} 14... h5 {[%clk 0:01:19.2]} 15. Qg5
{[%clk 0:02:06.3]} 15... Be7 {[%clk 0:01:13.6]} 16. Qxg7 {[%clk 0:02:02.4]}
16... O-O-O {[%clk 0:00:48.8]} 17. Bxb6 {[%clk 0:01:49.3]} 17... Rdg8 {[%clk
0:00:40.9]} 18. Qxh8 {[%clk 0:01:41.9]} 1-0

[Event "Early-Titled-Tuesday-Blitz-February-06-2024"]
[Site "Chess.com"]
[Date "2024.02.06"]
[Round "8"]
[White "SpongeBob_03"]
[Black "ATM622"]
[Result "0-1"]
[WhiteElo "2217"]
[BlackElo "2444"]
[TimeControl "180+1"]
[EndTime "9:25:44 PST"]
[Termination "ATM622 won by resignation"]

1. e4 {[%clk 0:03:00.9]} 1... c6 {[%clk 0:02:55.6]} 2. Nc3 {[%clk 0:03:00.2]}
2... d5 {[%clk 0:02:53.9]} 3. Nf3 {[%clk 0:03:01.1]} 3... dxe4 {[%clk
0:02:53.9]} 4. Nxe4 {[%clk 0:03:02]} 4... Bf5 {[%clk 0:02:48.9]} 5. Ng3 {[%clk
0:03:01.7]} 5... Bg4 {[%clk 0:02:47.1]} 6. Bc4 {[%clk 0:03:00]} 6... Bxf3 {[%clk
0:02:44.7]} 7. Qxf3 {[%clk 0:02:58.2]} 7... Nf6 {[%clk 0:02:45.2]} 8. c3 {[%clk
0:02:55.1]} 8... Nbd7 {[%clk 0:02:43.4]} 9. d4 {[%clk 0:02:54.7]} 9... e6 {[%clk
0:02:41.5]} 10. Bg5 {[%clk 0:02:54.1]} 10... Be7 {[%clk 0:02:40.8]} 11. O-O
{[%clk 0:02:52.9]} 11... O-O {[%clk 0:02:40.1]} 12. Bd3 {[%clk 0:02:51]} 12...
c5 {[%clk 0:02:28.9]} 13. Ne4 {[%clk 0:02:50]} 13... cxd4 {[%clk 0:02:19.1]} 14.
Rad1 {[%clk 0:02:41.2]} 14... Ne5 {[%clk 0:02:14.4]} 15. Nxf6+ {[%clk
0:01:53.5]} 15... Bxf6 {[%clk 0:02:13.3]} 16. Qh3 {[%clk 0:01:45.9]} 16... Nxd3
{[%clk 0:02:09.6]} 17. Bxf6 {[%clk 0:01:46]} 17... Nf4 {[%clk 0:01:53.8]} 18.
Bxd8 {[%clk 0:01:43.7]} 18... Nxh3+ {[%clk 0:01:53.7]} 19. gxh3 {[%clk
0:01:44.6]} 19... Rfxd8 {[%clk 0:01:53.3]} 20. cxd4 {[%clk 0:01:43]} 20... Rd5
{[%clk 0:01:50.1]} 21. Rd2 {[%clk 0:01:41.9]} 21... Rad8 {[%clk 0:01:48.3]} 22.
Rc1 {[%clk 0:01:40.9]} 22... h6 {[%clk 0:01:44]} 23. Rc7 {[%clk 0:01:40.5]}
23... R8d7 {[%clk 0:01:39.5]} 24. Rc8+ {[%clk 0:01:38]} 24... Kh7 {[%clk
0:01:39.4]} 25. Rb8 {[%clk 0:01:37.7]} 25... b6 {[%clk 0:01:34.8]} 26. Ra8
{[%clk 0:01:36.4]} 26... e5 {[%clk 0:01:33.4]} 27. Kf1 {[%clk 0:01:16.5]} 27...
exd4 {[%clk 0:01:33.3]} 28. Ke2 {[%clk 0:01:16.6]} 28... d3+ {[%clk 0:01:33]}
29. Kd1 {[%clk 0:01:14.7]} 29... Rg5 {[%clk 0:01:31.5]} 0-1

[Event "Early-Titled-Tuesday-Blitz-February-06-2024"]
[Site "Chess.com"]
[Date "2024.02.06"]
[Round "8"]
[White "ItsCheckM8Mate"]
[Black "ChampStan"]
[Result "1-0"]
[WhiteElo "2389"]
[BlackElo "2102"]
[TimeControl "180+1"]
[EndTime "9:25:50 PST"]
[Termination "ItsCheckM8Mate won by resignation"]

1. d4 {[%clk 0:02:59.5]} 1... d5 {[%clk 0:02:58.9]} 2. Bf4 {[%clk 0:02:58.2]}
2... Nf6 {[%clk 0:02:50.2]} 3. Nc3 {[%clk 0:02:58.1]} 3... e6 {[%clk 0:02:49.6]}
4. Nb5 {[%clk 0:02:52.7]} 4... Na6 {[%clk 0:02:36.4]} 5. e3 {[%clk 0:02:50]}
5... c6 {[%clk 0:02:32.3]} 6. Nc3 {[%clk 0:02:49.9]} 6... Bd6 {[%clk 0:02:24.7]}
7. Bxd6 {[%clk 0:02:47.8]} 7... Qxd6 {[%clk 0:02:21.7]} 8. Bxa6 {[%clk 0:02:48]}
8... bxa6 {[%clk 0:02:20.8]} 9. Nf3 {[%clk 0:02:48.4]} 9... O-O {[%clk
0:02:16.3]} 10. Na4 {[%clk 0:02:45.2]} 10... Nd7 {[%clk 0:02:12.4]} 11. O-O
{[%clk 0:02:42]} 11... Rb8 {[%clk 0:02:11]} 12. c3 {[%clk 0:02:37.4]} 12... Nb6
{[%clk 0:02:08.2]} 13. Nc5 {[%clk 0:02:36.9]} 13... a5 {[%clk 0:02:05.2]} 14.
Re1 {[%clk 0:02:33]} 14... Nd7 {[%clk 0:01:33.9]} 15. Nxd7 {[%clk 0:02:27.6]}
15... Bxd7 {[%clk 0:01:34.8]} 16. Qd2 {[%clk 0:02:20.8]} 16... Rb7 {[%clk
0:01:32.3]} 17. Ne5 {[%clk 0:02:18.1]} 17... Rfb8 {[%clk 0:01:29.1]} 18. Nd3
{[%clk 0:02:17.9]} 18... Qe7 {[%clk 0:01:23.9]} 19. e4 {[%clk 0:02:17.1]} 19...
dxe4 {[%clk 0:01:19.8]} 20. Rxe4 {[%clk 0:02:17.2]} 20... Rb5 {[%clk 0:01:16]}
21. Rae1 {[%clk 0:02:16.5]} 21... a4 {[%clk 0:01:10.5]} 22. Re5 {[%clk
0:02:06.1]} 22... Rxe5 {[%clk 0:00:50.1]} 23. Rxe5 {[%clk 0:02:03.3]} 23... Qd6
{[%clk 0:00:29.3]} 24. Ra5 {[%clk 0:02:00]} 1-0

[Event "Early-Titled-Tuesday-Blitz-February-06-2024"]
[Site "Chess.com"]
[Date "2024.02.06"]
[Round "8"]
[White "Kostya0705"]
[Black "InitiatingASC"]
[Result "1-0"]
[WhiteElo "2603"]
[BlackElo "2425"]
[TimeControl "180+1"]
[EndTime "9:26:00 PST"]
[Termination "Kostya0705 won by resignation"]

1. e4 {[%clk 0:02:58.7]} 1... c5 {[%clk 0:02:59.8]} 2. Nf3 {[%clk 0:02:57.7]}
2... Nc6 {[%clk 0:03:00.2]} 3. d4 {[%clk 0:02:58.6]} 3... cxd4 {[%clk 0:03:01]}
4. Nxd4 {[%clk 0:02:59.5]} 4... Nf6 {[%clk 0:03:01.3]} 5. Nc3 {[%clk 0:02:59.8]}
5... e5 {[%clk 0:03:02]} 6. Ndb5 {[%clk 0:02:59.8]} 6... h6 {[%clk 0:03:02.7]}
7. Nd6+ {[%clk 0:02:59]} 7... Bxd6 {[%clk 0:03:02.8]} 8. Qxd6 {[%clk 0:02:59.9]}
8... Qe7 {[%clk 0:03:03.7]} 9. Qd1 {[%clk 0:02:59.7]} 9... O-O {[%clk
0:03:03.6]} 10. Be3 {[%clk 0:02:59.1]} 10... d6 {[%clk 0:03:03.8]} 11. Be2
{[%clk 0:02:56.9]} 11... Be6 {[%clk 0:03:04.1]} 12. O-O {[%clk 0:02:57.1]} 12...
Rad8 {[%clk 0:03:02.1]} 13. Nd5 {[%clk 0:02:56.2]} 13... Bxd5 {[%clk 0:02:55.5]}
14. exd5 {[%clk 0:02:57.1]} 14... Nb4 {[%clk 0:02:55.9]} 15. c4 {[%clk
0:02:55.9]} 15... a5 {[%clk 0:02:55.4]} 16. Bb6 {[%clk 0:02:54.3]} 16... Ra8
{[%clk 0:02:50.1]} 17. a3 {[%clk 0:02:54.5]} 17... Nd7 {[%clk 0:02:45.2]} 18.
axb4 {[%clk 0:02:53.3]} 18... Nxb6 {[%clk 0:02:43.6]} 19. bxa5 {[%clk
0:02:53.8]} 19... Nd7 {[%clk 0:02:42.1]} 20. b4 {[%clk 0:02:54.3]} 20... f5
{[%clk 0:02:41]} 21. Qb3 {[%clk 0:02:51.5]} 21... Kh8 {[%clk 0:02:40.2]} 22.
Rfe1 {[%clk 0:02:49.7]} 22... e4 {[%clk 0:02:39.9]} 23. f3 {[%clk 0:02:49.4]}
23... Qe5 {[%clk 0:02:30.9]} 24. Kh1 {[%clk 0:02:46.9]} 24... e3 {[%clk
0:02:21.4]} 25. Qa4 {[%clk 0:02:28.7]} 25... Rf7 {[%clk 0:02:14.6]} 26. Qb5
{[%clk 0:02:28.8]} 26... Nf6 {[%clk 0:02:10.9]} 27. Rad1 {[%clk 0:02:22.6]}
27... f4 {[%clk 0:02:02.1]} 28. c5 {[%clk 0:02:22.4]} 28... Nh5 {[%clk
0:02:01.5]} 29. c6 {[%clk 0:02:18.1]} 29... Rb8 {[%clk 0:01:23.3]} 30. Rc1
{[%clk 0:01:52.8]} 30... Qe8 {[%clk 0:00:37.6]} 31. c7 {[%clk 0:01:47.8]} 1-0

[Event "Early-Titled-Tuesday-Blitz-February-06-2024"]
[Site "Chess.com"]
[Date "2024.02.06"]
[Round "8"]
[White "Akewjon"]
[Black "Payyappat"]
[Result "1-0"]
[WhiteElo "2776"]
[BlackElo "2505"]
[TimeControl "180+1"]
[EndTime "9:26:04 PST"]
[Termination "Akewjon won by resignation"]

1. d4 {[%clk 0:03:00.9]} 1... Nf6 {[%clk 0:02:58.5]} 2. c4 {[%clk 0:03:01]} 2...
c5 {[%clk 0:02:57.6]} 3. d5 {[%clk 0:03:00.8]} 3... e6 {[%clk 0:02:58.2]} 4. Nc3
{[%clk 0:03:00.8]} 4... exd5 {[%clk 0:02:59.1]} 5. cxd5 {[%clk 0:03:01.7]} 5...
d6 {[%clk 0:02:59.8]} 6. e4 {[%clk 0:03:01.4]} 6... g6 {[%clk 0:02:57.9]} 7. f4
{[%clk 0:03:02]} 7... Bg7 {[%clk 0:02:58.2]} 8. Bb5+ {[%clk 0:02:59]} 8... Nfd7
{[%clk 0:02:57.9]} 9. Nf3 {[%clk 0:02:58.8]} 9... O-O {[%clk 0:02:57.4]} 10. a4
{[%clk 0:02:58.2]} 10... Na6 {[%clk 0:02:56.3]} 11. O-O {[%clk 0:02:57.3]} 11...
Nb4 {[%clk 0:02:55.3]} 12. Re1 {[%clk 0:02:54.9]} 12... a6 {[%clk 0:02:53.3]}
13. Bf1 {[%clk 0:02:54.1]} 13... f5 {[%clk 0:02:50.2]} 14. e5 {[%clk 0:02:48.3]}
14... Re8 {[%clk 0:02:42.3]} 15. e6 {[%clk 0:02:31.1]} 15... Nf6 {[%clk
0:02:39.1]} 16. a5 {[%clk 0:02:27.4]} 16... b5 {[%clk 0:02:25.7]} 17. axb6
{[%clk 0:02:26.3]} 17... Qxb6 {[%clk 0:02:24.1]} 18. Nd2 {[%clk 0:02:23.8]}
18... Nfxd5 {[%clk 0:02:15.8]} 19. Nxd5 {[%clk 0:02:22.9]} 19... Nxd5 {[%clk
0:02:16.7]} 20. Nc4 {[%clk 0:02:23.6]} 20... Qc6 {[%clk 0:02:11]} 21. Na5 {[%clk
0:02:22.7]} 21... Qb6 {[%clk 0:01:40.8]} 22. Qxd5 {[%clk 0:02:20.8]} 22... Qb4
{[%clk 0:01:36.8]} 23. Be3 {[%clk 0:02:09.6]} 23... Bxe6 {[%clk 0:01:35.1]} 24.
Qxd6 {[%clk 0:02:06.3]} 24... Bxb2 {[%clk 0:01:32.7]} 25. Nc6 {[%clk 0:02:02.6]}
25... Qc3 {[%clk 0:01:23.9]} 26. Bd2 {[%clk 0:01:54.2]} 26... Qf6 {[%clk
0:01:18.9]} 27. Rxa6 {[%clk 0:01:48.7]} 27... Rxa6 {[%clk 0:01:08]} 28. Bxa6
{[%clk 0:01:49.6]} 28... Bd4+ {[%clk 0:00:57.2]} 29. Nxd4 {[%clk 0:01:48.4]}
29... Qxd4+ {[%clk 0:00:58.1]} 30. Qxd4 {[%clk 0:01:48.1]} 30... cxd4 {[%clk
0:00:59]} 31. Rxe6 {[%clk 0:01:39.8]} 31... Rxe6 {[%clk 0:00:59.9]} 32. Bc4
{[%clk 0:01:40.4]} 32... Kf7 {[%clk 0:00:59.7]} 33. Kf2 {[%clk 0:01:40.9]} 33...
Kf6 {[%clk 0:00:58.8]} 34. Bxe6 {[%clk 0:01:40.9]} 34... Kxe6 {[%clk 0:00:59.7]}
35. Ke2 {[%clk 0:01:41.6]} 35... Kd5 {[%clk 0:01:00.6]} 1-0

[Event "Early-Titled-Tuesday-Blitz-February-06-2024"]
[Site "Chess.com"]
[Date "2024.02.06"]
[Round "8"]
[White "GMAkobianSTL"]
[Black "HATilay"]
[Result "1-0"]
[WhiteElo "2715"]
[BlackElo "2517"]
[TimeControl "180+1"]
[EndTime "9:26:10 PST"]
[Termination "GMAkobianSTL won by checkmate"]

1. d4 {[%clk 0:02:55.4]} 1... Nf6 {[%clk 0:02:59.8]} 2. c4 {[%clk 0:02:53.4]}
2... e6 {[%clk 0:02:59.7]} 3. Nf3 {[%clk 0:02:52.9]} 3... d5 {[%clk 0:02:59.8]}
4. cxd5 {[%clk 0:02:51.5]} 4... exd5 {[%clk 0:02:59.6]} 5. Nc3 {[%clk
0:02:51.4]} 5... Nbd7 {[%clk 0:02:59.1]} 6. Bg5 {[%clk 0:02:50.8]} 6... c6
{[%clk 0:02:58.6]} 7. Qc2 {[%clk 0:02:49]} 7... h6 {[%clk 0:02:58.7]} 8. Bh4
{[%clk 0:02:48.6]} 8... g5 {[%clk 0:02:58.9]} 9. Bg3 {[%clk 0:02:48.5]} 9... Nh5
{[%clk 0:02:59.6]} 10. e3 {[%clk 0:02:48.3]} 10... Nxg3 {[%clk 0:02:59.7]} 11.
hxg3 {[%clk 0:02:48.2]} 11... Bg7 {[%clk 0:03:00.1]} 12. Bd3 {[%clk 0:02:47]}
12... Qe7 {[%clk 0:03:00.4]} 13. O-O-O {[%clk 0:02:46.3]} 13... Nb6 {[%clk
0:03:00.9]} 14. Kb1 {[%clk 0:02:44.4]} 14... Be6 {[%clk 0:03:01.5]} 15. Rc1
{[%clk 0:02:42.8]} 15... O-O-O {[%clk 0:03:02.1]} 16. Na4 {[%clk 0:02:42.4]}
16... Kb8 {[%clk 0:03:00.5]} 17. Qb3 {[%clk 0:02:40.5]} 17... Qc7 {[%clk
0:02:25.9]} 18. Nc5 {[%clk 0:02:15.5]} 18... Bc8 {[%clk 0:02:21.9]} 19. Rc3
{[%clk 0:02:09.5]} 19... Qe7 {[%clk 0:02:18.3]} 20. Rhc1 {[%clk 0:02:06.8]}
20... h5 {[%clk 0:02:18.7]} 21. Ka1 {[%clk 0:01:55.1]} 21... h4 {[%clk
0:02:19.1]} 22. gxh4 {[%clk 0:01:52]} 22... gxh4 {[%clk 0:02:20]} 23. Qb4 {[%clk
0:01:12.1]} 23... Rde8 {[%clk 0:02:07.5]} 24. Rb3 {[%clk 0:01:09.4]} 24... h3
{[%clk 0:02:04.8]} 25. gxh3 {[%clk 0:01:06.8]} 25... Rxh3 {[%clk 0:02:05.3]} 26.
Nd2 {[%clk 0:00:58.5]} 26... Rh2 {[%clk 0:02:02]} 27. a4 {[%clk 0:00:49.4]}
27... Rxf2 {[%clk 0:01:19.4]} 28. a5 {[%clk 0:00:47.7]} 28... Na8 {[%clk
0:01:19.9]} 29. Na6# {[%clk 0:00:47.2]} 1-0

[Event "Early-Titled-Tuesday-Blitz-February-06-2024"]
[Site "Chess.com"]
[Date "2024.02.06"]
[Round "8"]
[White "Zhigalko_Sergei"]
[Black "Sattarov_Bobur"]
[Result "0-1"]
[WhiteElo "2938"]
[BlackElo "2803"]
[TimeControl "180+1"]
[EndTime "9:26:24 PST"]
[Termination "Sattarov_Bobur won on time"]

1. e4 {[%clk 0:03:00.6]} 1... e5 {[%clk 0:03:00.5]} 2. Nf3 {[%clk 0:03:00.2]}
2... Nc6 {[%clk 0:03:01.2]} 3. Bc4 {[%clk 0:03:00.1]} 3... Bc5 {[%clk
0:03:00.9]} 4. b4 {[%clk 0:03:00.3]} 4... Bxb4 {[%clk 0:03:01]} 5. c3 {[%clk
0:03:00.8]} 5... Bd6 {[%clk 0:03:01.7]} 6. d4 {[%clk 0:03:01.1]} 6... Qf6 {[%clk
0:03:02.4]} 7. O-O {[%clk 0:02:56.1]} 7... h6 {[%clk 0:03:02.4]} 8. Re1 {[%clk
0:02:50.6]} 8... Nge7 {[%clk 0:03:02.2]} 9. Nbd2 {[%clk 0:02:46.8]} 9... Ng6
{[%clk 0:02:46.4]} 10. Bb3 {[%clk 0:02:28.6]} 10... Na5 {[%clk 0:02:34.9]} 11.
Nf1 {[%clk 0:02:13.6]} 11... O-O {[%clk 0:02:25.6]} 12. Ne3 {[%clk 0:02:11.9]}
12... c6 {[%clk 0:02:17]} 13. Bc2 {[%clk 0:01:55.1]} 13... Re8 {[%clk
0:02:15.2]} 14. g3 {[%clk 0:01:43.6]} 14... Bc7 {[%clk 0:02:07.4]} 15. h4 {[%clk
0:01:26.3]} 15... d6 {[%clk 0:02:06.3]} 16. h5 {[%clk 0:01:03.5]} 16... Nf8
{[%clk 0:02:04.9]} 17. Rb1 {[%clk 0:00:54.1]} 17... Nh7 {[%clk 0:01:50.4]} 18.
Nh4 {[%clk 0:00:32.8]} 18... Ng5 {[%clk 0:01:44.4]} 19. Nef5 {[%clk 0:00:07.3]}
19... d5 {[%clk 0:01:39.3]} 0-1